bitfinex-derivatives/quotes_SOLF0:USTF0_20251126
["timestamp","ask_amount","ask_price","bid_price","bid_amount"]
[1764130046452,1.49054118,138.31,138.2,25.16]
[1764130046652,6.5137,138.24,138.14,6.5179]
[1764130047352,122.0425,138.27,138.15,6.5175]
[1764130047553,0.05401495,138.22,138.2,0.05469263]
[1764130047755,0.0471831,138.22,138.2,0.05469263]
[1764130049757,6.5617831,138.22,138.2,0.05469263]
[1764130051555,101.344,138.21,138.1,6.52]
[1764130051856,126.4782,138.22,138.1,6.52]
[1764130052448,0.05190464,138.17,138.15,0.0503259]
[1764130052758,0.04913485,138.17,138.15,0.0503259]
[1764130057960,0.04913485,138.17,138.15,6.5677259]
[1764130058259,6.5141,138.23,138.15,6.5677259]
[1764130058662,101.3296,138.23,138.15,0.0503259]
[1764130058859,5.11644137,138.22,138.15,0.0503259]
[1764130059054,0.04942333,138.2,138.15,0.0503259]
[1764130060565,101.365,138.18,138.15,0.0503259]
[1764130061653,6.5168,138.17,138.15,0.0503259]
[1764130062361,101.3761,138.17,138.05,62.0]
[1764130063162,0.04573888,138.12,138.1,0.05104386]
[1764130063358,6.5179,138.15,138.1,0.05104386]
[1764130063861,6.5188,138.13,138.1,0.05104386]
[1764130064266,0.05354859,138.14,138.1,0.05104386]
[1764130065259,6.57184859,138.14,138.1,0.05104386]
[1764130065963,6.5188,138.13,138.1,0.05104386]
[1764130066157,101.4029,138.13,138.1,0.05104386]
[1764130067256,6.5193,138.12,138.1,0.05104386]
[1764130070768,126.5526,138.12,138.03,25.14]
[1764130071769,0.04808266,138.09,138.06,0.04809917]
[1764130074869,0.04808266,138.09,138.0,62.0]
[1764130074870,101.48268266,138.09,138.0,62.0]
[1764130075071,25.12,138.08,137.95,25.30554587]
[1764130075283,126.5618,138.08,137.95,25.30554587]
[1764130075582,6.5221,138.06,137.95,25.30554587]
[1764130075785,6.5221,138.06,137.96,6.5264]
[1764130075984,0.04705815,138.02,138.0,0.05194091]
[1764130077682,126.5618,138.08,138.0,0.05194091]
[1764130077683,101.4336,138.09,138.0,0.05194091]
[1764130077885,101.4336,138.09,137.98,4.38554587]
[1764130078084,101.4293,138.1,137.98,105.89274587]
[1764130078581,0.04934764,138.05,138.03,0.0466483]
[1764130078776,0.05539098,138.05,138.03,0.0466483]
[1764130081786,26.61539098,138.05,137.91,6.5289]
[1764130081986,25.14,138.04,137.92,4.38554587]
[1764130082186,101.464,138.05,137.92,4.38554587]
[1764130082386,126.604,138.05,137.92,4.38554587]
[1764130082689,6.5235,138.03,137.94,6.5274]
[1764130082889,0.04942059,138.0,137.97,0.05174304]
[1764130083188,0.04693453,138.0,137.97,0.04593533]
[1764130083390,0.04693453,138.0,137.97,6.57183533]
[1764130085482,101.4383,138.08,137.97,0.04593533]
[1764130085687,6.5226,138.05,137.96,101.5225]
[1764130086292,6.5226,138.05,137.97,6.5259]
[1764130086493,6.5244,138.01,138.0,0.04733188]
[1764130086789,6.5244,138.01,137.9,101.5675]
[1764130087297,101.4899,138.01,137.87,126.7292]
[1764130087596,0.05118759,137.95,137.93,0.05329251]
[1764130087898,0.04742957,137.95,137.93,0.05329251]
[1764130091199,0.04742957,137.95,137.82,101.6267]
[1764130091396,101.5509,137.93,137.8,101.6418]
[1764130091592,101.5443,137.94,137.82,101.629]
[1764130091991,6.5283,137.93,137.82,101.629]
[1764130092296,0.04959833,137.89,137.81,101.6367]
[1764130092497,0.04959833,137.89,137.79,25.18]
[1764130092695,0.0500869,137.85,137.8,6.5341]
[1764130092894,0.05080451,137.84,137.81,101.6366]
[1764130093199,0.04817091,137.84,137.8,101.6432]
[1764130093501,0.04817091,137.84,137.82,6.533]
[1764130093891,0.04817091,137.84,137.82,7.993]
[1764130094202,0.04817091,137.84,137.82,1.46]
[1764130094800,0.04817091,137.84,137.82,7.9929]
[1764130095496,0.04817091,137.84,137.82,6.5329]
[1764130096999,0.04817091,137.84,137.82,7.9929]
[1764130097193,101.5247,137.97,137.85,6.5315]
[1764130097504,5.29127513,137.96,137.85,6.5315]
[1764130098203,0.04757106,137.92,137.89,0.04705531]
[1764130098394,0.04757106,137.92,137.84,25.2]
[1764130099203,6.57647106,137.92,137.84,31.7321]
[1764130099599,0.04757106,137.92,137.84,25.2]
[1764130100802,6.5292,137.91,137.84,25.2]
[1764130101004,0.05336221,137.89,137.84,25.2]
[1764130103102,0.05336221,137.89,137.77,101.6634]
[1764130103103,0.05336221,137.89,137.81,6.5335]
[1764130103304,0.05384027,137.86,137.81,6.5335]
[1764130103808,0.05384027,137.86,137.82,6.533]
[1764130104311,6.50841554,137.98,137.83,0.04930565]
[1764130104607,211.87306603,138.0,137.85,101.6053]
[1764130104608,106.80444711,137.99,137.85,101.6053]
[1764130104808,6.5269,137.96,137.87,6.5308]
[1764130105309,0.04598192,137.93,137.9,0.04712585]
[1764130106306,0.04598192,137.93,137.9,6.57642585]
[1764130106613,101.4867,138.02,137.9,1.50712585]
[1764130106910,101.4867,138.02,137.9,101.5699]
[1764130107514,0.04623303,137.97,137.95,0.04615019]
[1764130107713,0.04845778,137.97,137.95,0.04615019]
[1764130116919,107.96401554,138.06,137.95,0.04615019]
[1764130117113,5.33309871,138.05,137.96,25.16]
[1764130117315,5.33309871,138.06,137.97,101.5189]
[1764130117523,10.40996677,138.08,137.97,101.5189]
[1764130117721,6.5222,138.06,137.99,6.525]
[1764130118025,0.04954721,138.04,138.01,0.04567805]
[1764130122613,5.34019364,138.12,138.02,25.16]
[1764130122818,5.03372189,138.13,138.02,126.6393]
[1764130123126,11.85968844,138.13,138.03,101.4744]
[1764130123423,101.3819,138.16,138.04,101.467]
[1764130123624,0.05532631,138.11,138.09,0.05105162]
[1764130123828,0.0498158,138.11,138.09,0.05105162]
[1764130143326,126.4604,138.19,138.09,6.57135162]
[1764130143535,126.4604,138.19,138.09,6.5203]
[1764130143926,6.5175,138.16,138.09,6.5203]
[1764130144327,0.05263981,138.14,138.11,0.05348114]
[1764130149034,6.57093981,138.14,138.11,0.05348114]
[1764130149439,0.05263981,138.14,138.11,0.05348114]
[1764130157745,6.57083981,138.14,138.11,0.05348114]
[1764130160743,0.05263981,138.14,138.11,0.05348114]
[1764130161951,1.87887749,138.12,138.02,1.87887749]
[1764130162138,1.87887749,138.1,138.02,26.91887749]
[1764130162338,6.5206,138.09,138.02,8.40267749]
[1764130162952,0.05271746,138.07,138.04,0.04992376]
[1764130166652,0.05271746,138.07,138.04,6.57262376]
[1764130168251,0.05271746,138.07,138.05,6.5223]
[1764130170051,0.05271746,138.07,138.06,25.02]
[1764130174853,0.05271746,138.07,138.04,0.04992376]
[1764130176858,6.57431746,138.07,138.04,0.04992376]
[1764130177354,0.05271746,138.07,138.04,0.04992376]
[1764130185565,6.57431746,138.07,138.04,0.04992376]
[1764130185755,8.45319495,138.07,138.04,0.04992376]
[1764130187859,1.93159495,138.07,138.04,0.04992376]
[1764130188063,0.05271746,138.07,138.04,0.04992376]
[1764130191968,0.05271746,138.07,138.04,6.57262376]
[1764130193959,0.05271746,138.07,138.04,0.04992376]
[1764130195266,0.05271746,138.07,138.04,6.57262376]
[1764130195658,0.05271746,138.07,138.04,0.04992376]
[1764130197269,0.05271746,138.07,138.05,6.5222]
[1764130198165,5.37574885,138.14,138.06,6.5216]
[1764130198372,12.32226687,138.13,138.06,6.5216]
[1764130198663,5.06764053,138.12,138.06,6.5216]
[1764130198968,5.06764053,138.11,138.06,6.5216]
[1764130199162,8.39777749,138.13,138.07,6.57007519]
[1764130199362,0.05025749,138.1,138.07,0.04877519]
[1764130200865,7.25462634,138.17,138.07,103.36915268]
[1764130201066,10.44485692,138.16,138.08,24.96]
[1764130201270,5.06910807,138.15,138.08,24.96]
[1764130201465,5.06910807,138.14,138.08,24.96]
[1764130201673,8.39667749,138.15,138.08,31.4807]
[1764130201871,0.04775583,138.13,138.1,0.05096077]
[1764130204468,6.56655583,138.13,138.1,0.05096077]
[1764130204864,5.06905117,138.12,138.1,0.05096077]
[1764130205170,5.42350468,138.13,138.1,0.05096077]
[1764130205373,5.07028033,138.12,138.1,0.05096077]
[1764130205670,5.42350468,138.13,138.1,0.05096077]
[1764130205864,5.070282,138.12,138.1,0.05096077]
[1764130206071,11.94230468,138.13,138.1,0.05096077]
[1764130206372,5.070282,138.12,138.1,0.05096077]
[1764130206574,11.94230468,138.13,138.1,0.05096077]
[1764130206871,5.07217645,138.12,138.1,0.05096077]
[1764130207072,11.94230468,138.13,138.1,0.05096077]
[1764130207274,5.07217645,138.12,138.1,0.05096077]
[1764130207570,11.94230468,138.13,138.1,0.05096077]
[1764130207872,5.07190165,138.12,138.1,0.05096077]
[1764130208074,11.94230468,138.13,138.1,0.05096077]
[1764130208263,5.07190165,138.12,138.1,0.05096077]
[1764130208571,11.94230468,138.13,138.1,0.05096077]
[1764130208762,5.07159048,138.12,138.1,0.05096077]
[1764130208968,11.94230468,138.13,138.1,0.05096077]
[1764130209173,5.07159048,138.12,138.1,0.05096077]
[1764130209459,11.94230468,138.13,138.1,0.05096077]
[1764130209658,11.59049315,138.12,138.1,0.05096077]
[1764130209865,10.45446227,138.11,138.0,103.37257749]
[1764130210168,1.87887749,138.09,138.0,128.33257749]
[1764130210567,6.5211,138.08,138.03,6.5231]
[1764130210764,0.05456387,138.07,138.04,0.05096376]
[1764130210976,1.87887749,138.05,137.94,101.5395]
[1764130211177,5.07007701,138.04,137.97,6.526]
[1764130211380,1.87887749,138.05,137.97,6.526]
[1764130211575,5.06789063,138.04,137.97,6.526]
[1764130211879,1.87887749,138.05,137.97,6.526]
[1764130212064,0.04695603,138.02,137.99,0.05037446]
[1764130216077,5.06706932,138.01,137.89,101.5751]
[1764130216274,5.06706932,138.0,137.9,86.96]
[1764130216575,5.06706932,138.0,137.92,6.5283]
[1764130216975,0.04587064,137.97,137.95,0.05009552]
[1764130234789,6.57217064,137.97,137.95,0.05009552]
[1764130234992,6.57217064,137.97,137.84,101.6134]
[1764130234993,27.90055981,137.96,137.84,101.6134]
[1764130235493,2.94055981,137.96,137.84,101.6134]
[1764130235993,0.04797412,137.91,137.89,0.04856746]
[1764130236192,0.04567649,137.91,137.89,0.04856746]
[1764130240895,6.57517649,137.91,137.89,0.04856746]
[1764130241094,0.04567649,137.91,137.81,6.5335]
[1764130241396,101.5587,137.92,137.81,6.5335]
[1764130241592,101.5641,137.91,137.81,6.5335]
[1764130241997,0.05210015,137.87,137.85,0.05185262]
[1764130245100,6.58340015,137.87,137.85,0.05185262]
[1764130245998,0.05210015,137.87,137.76,62.0]
[1764130246194,101.5779,137.89,137.77,101.6661]
[1764130247100,0.04633957,137.84,137.77,101.6661]
[1764130247302,0.04633957,137.84,137.79,6.5345]
[1764130249601,0.04633957,137.84,137.77,101.6661]
[1764130249602,0.04633957,137.84,137.8,6.534]
[1764130251904,0.04633957,137.84,137.81,6.5336]
[1764130252102,0.04633957,137.84,137.79,104.59175981]
[1764130252303,0.04633957,137.84,137.8,101.6441]
[1764130252503,0.04633957,137.84,137.82,6.5331]
[1764130252804,2.94055981,137.93,137.82,101.6278]
[1764130253503,8.27056706,137.93,137.82,101.6278]
[1764130253899,0.05089978,137.89,137.86,0.04633957]
[1764130254707,5.33776093,137.95,137.87,126.607]
[1764130255006,5.33776093,137.97,137.87,25.02]
[1764130255502,5.33776093,137.96,137.87,25.02]
[1764130255805,106.54550902,137.98,137.87,25.02]
[1764130255806,0.05229612,137.93,137.9,0.0489836]
[1764130266910,5.03110902,137.92,137.9,0.0489836]
[1764130267105,10.39057985,137.92,137.9,0.0489836]
[1764130267306,5.03110902,137.92,137.9,0.0489836]
[1764130268213,10.44287597,137.93,137.9,0.0489836]
[1764130268415,11.55980902,137.92,137.9,0.0489836]
[1764130269215,6.5287,137.92,137.9,0.0489836]
[1764130269416,6.5292,137.91,137.84,6.5322]
[1764130269812,10.39145497,137.92,137.84,6.5322]
[1764130270213,109.53566883,137.91,137.79,101.6508]
[1764130270408,0.04682276,137.86,137.84,0.04825575]
[1764130270716,0.05184735,137.86,137.84,0.04825575]
[1764130276914,0.05184735,137.86,137.84,6.58045575]
[1764130278325,0.05184735,137.86,137.84,0.04825575]
[1764130281932,6.58334735,137.86,137.84,0.04825575]
[1764130287430,0.05184735,137.86,137.84,0.04825575]
[1764130296649,6.58334735,137.86,137.84,0.04825575]
[1764130299151,1.88683804,137.85,137.8,2.13]
[1764130299345,0.05184735,137.86,137.8,2.13]
[1764130300352,6.5322,137.85,137.8,2.13]
[1764130301155,0.05184735,137.86,137.8,8.6641]
[1764130302359,0.05184735,137.86,137.8,2.13]
[1764130302858,6.532,137.85,137.8,2.13]
[1764130303051,0.05184735,137.86,137.8,2.13]
[1764130303450,0.05184735,137.86,137.8,4.01683804]
[1764130304255,0.05184735,137.86,137.81,6.5334]
[1764130304556,0.05184735,137.86,137.8,4.01683804]
[1764130305155,0.05184735,137.86,137.82,6.5331]
[1764130305458,0.05184735,137.86,137.8,2.13]
[1764130306259,0.05184735,137.86,137.81,6.5335]
[1764130307161,0.05184735,137.86,137.82,6.5331]
[1764130309759,0.05184735,137.86,137.8,8.664]
[1764130310958,5.08676401,137.85,137.8,8.664]
[1764130311165,8.47018539,137.86,137.8,8.664]
[1764130311465,5.08973022,137.85,137.8,2.13]
[1764130311763,7.31246657,137.86,137.8,2.13]
[1764130312063,5.08934488,137.85,137.8,2.13]
[1764130312257,5.08934488,137.84,137.8,2.13]
[1764130312456,6.532,137.85,137.8,2.13]
[1764130312658,5.08975139,137.84,137.8,2.13]
[1764130312861,6.532,137.85,137.8,2.13]
[1764130313066,5.08975139,137.84,137.8,2.13]
[1764130313269,6.532,137.85,137.8,2.13]
[1764130313563,5.09037718,137.84,137.8,2.13]
[1764130313767,6.532,137.85,137.8,2.13]
[1764130313963,5.09037718,137.84,137.8,2.13]
[1764130314265,6.532,137.85,137.8,2.13]
[1764130314466,5.09108779,137.84,137.8,2.13]
[1764130314764,6.532,137.85,137.8,2.13]
[1764130315064,5.09108779,137.84,137.8,2.13]
[1764130315260,6.532,137.85,137.8,2.13]
[1764130315564,5.0912553,137.84,137.8,2.13]
[1764130315864,6.532,137.85,137.8,2.13]
[1764130316065,11.62538911,137.84,137.8,2.13]
[1764130316366,6.5326,137.84,137.8,2.13]
[1764130316564,5.09245053,137.83,137.8,2.13]
[1764130316766,0.04898055,137.83,137.8,2.13]
[1764130317656,6.58188055,137.83,137.8,2.13]
[1764130317860,6.97776095,137.82,137.8,2.13]
[1764130318062,5.09092291,137.81,137.8,2.13]
[1764130318259,1.88683804,137.82,137.8,2.13]
[1764130319169,6.58208055,137.83,137.8,2.13]
[1764130319368,12.34822038,137.82,137.8,2.13]
[1764130319556,10.46138234,137.81,137.8,2.13]
[1764130319760,5.08765857,137.81,137.8,2.13]
[1764130320266,6.54765857,137.81,137.71,3.09942896]
[1764130320569,0.04742288,137.77,137.71,3.09942896]
[1764130320766,5.08765857,137.76,137.71,9.63772896]
[1764130320974,0.04742288,137.77,137.71,9.63772896]
[1764130321366,5.08201894,137.76,137.71,9.63772896]
[1764130321562,0.04742288,137.77,137.72,101.7026]
[1764130321767,0.04742288,137.77,137.72,101.7032]
[1764130322472,0.04742288,137.77,137.74,6.5368]
[1764130323061,0.04742288,137.77,137.73,1.88683804]
[1764130323062,0.04742288,137.77,137.73,103.57913804]
[1764130323277,0.04742288,137.77,137.75,6.5363]
[1764130324160,7.25442023,137.84,137.77,6.5355]
[1764130324360,7.25442023,137.84,137.74,101.6854]
[1764130324361,5.06008649,137.83,137.74,103.57223804]
[1764130324664,5.06008649,137.82,137.74,103.57223804]
[1764130324865,5.06008649,137.83,137.74,103.57223804]
[1764130325174,0.04930972,137.8,137.77,0.04702275]
[1764130326069,0.04930972,137.8,137.78,6.535]
[1764130326774,5.06341297,137.85,137.78,8.42183804]
[1764130327274,5.06307018,137.86,137.78,8.42183804]
[1764130327570,5.06307018,137.85,137.78,8.42183804]
[1764130327769,0.05376821,137.83,137.8,0.04743185]
[1764130328173,0.05376821,137.83,137.8,1.93426989]
[1764130328370,0.05376821,137.83,137.8,0.04743185]
[1764130329676,0.05376821,137.83,137.8,6.58133185]
[1764130329870,0.05376821,137.83,137.8,0.04743185]
[1764130330078,0.05376821,137.83,137.8,1.93426989]
[1764130330267,0.05376821,137.83,137.81,25.0]
[1764130330671,0.05376821,137.83,137.81,31.5335]
[1764130331369,0.05376821,137.83,137.82,25.0]
[1764130331874,5.06412635,137.88,137.82,25.0]
[1764130332078,13.78372023,137.91,137.82,26.88683804]
[1764130332274,5.06767369,137.9,137.83,1.88683804]
[1764130332576,5.06767369,137.89,137.84,6.5321]
[1764130332769,5.06767369,137.9,137.84,6.5321]
[1764130332971,0.04906803,137.88,137.86,0.05557632]
[1764130334470,0.04906803,137.88,137.86,6.58677632]
[1764130334869,0.04906803,137.88,137.87,25.0]
[1764130335271,5.06618332,137.94,137.87,31.5307]
[1764130335472,5.06618332,137.93,137.87,31.5307]
[1764130335678,5.06618332,137.94,137.87,25.0]
[1764130335878,5.06618332,137.93,137.86,6.5312]
[1764130336075,5.06618332,137.92,137.87,24.98]
[1764130336282,0.05532151,137.91,137.88,0.05014982]
[1764130350285,0.05532151,137.91,137.88,6.58044982]
[1764130350993,0.05532151,137.91,137.88,0.05014982]
[1764130364609,6.58452151,137.91,137.88,0.05014982]
[1764130364800,0.05532151,137.91,137.88,0.05014982]
[1764130366309,6.58442151,137.91,137.88,0.05014982]
[1764130367407,11.63852297,137.91,137.88,0.05014982]
[1764130367608,6.58442151,137.91,137.88,0.05014982]
[1764130367912,11.63852297,137.91,137.88,0.05014982]
[1764130368210,5.05410146,137.9,137.88,0.05014982]
[1764130369219,6.58442151,137.91,137.88,0.05014982]
[1764130369512,5.06672724,137.9,137.88,0.05014982]
[1764130369719,6.58442151,137.91,137.88,0.05014982]
[1764130369916,5.06676034,137.9,137.88,0.05014982]
[1764130370117,6.58442151,137.91,137.88,0.05014982]
[1764130370320,5.07096267,137.9,137.88,0.05014982]
[1764130370519,5.07096267,137.89,137.88,0.05014982]
[1764130382519,0.05532151,137.91,137.88,0.05014982]
[1764130382716,5.08194947,137.9,137.88,0.05014982]
[1764130383014,0.05532151,137.91,137.88,0.05014982]
[1764130383217,5.08195058,137.9,137.88,0.05014982]
[1764130383414,5.08198482,137.89,137.88,0.05014982]
[1764130383929,5.07225928,137.89,137.88,0.05014982]
[1764130384930,6.58442151,137.91,137.88,0.05014982]
[1764130385136,5.07224767,137.9,137.88,0.05014982]
[1764130385332,0.05532151,137.91,137.88,0.05014982]
[1764130385633,5.07224854,137.9,137.88,0.05014982]
[1764130385929,6.58452151,137.91,137.88,0.05014982]
[1764130386119,5.07224802,137.9,137.88,0.05014982]
[1764130386317,6.58452151,137.91,137.88,0.05014982]
[1764130386522,5.07224877,137.9,137.88,0.05014982]
[1764130386723,5.07224877,137.89,137.8,2.94540727]
[1764130387022,5.07224877,137.88,137.83,24.96]
[1764130387221,5.35763615,137.91,137.83,24.96]
[1764130387418,10.42996947,137.9,137.83,24.96]
[1764130387734,5.07233332,137.89,137.85,0.04574518]
[1764130387930,5.1215796,137.88,137.85,0.04574518]
[1764130388130,0.04924628,137.88,137.85,0.04574518]
[1764130389436,0.04924628,137.88,137.86,6.5313]
[1764130393529,0.04924628,137.88,137.86,10.93670727]
[1764130393729,5.35762279,137.97,137.9,6.5291]
[1764130393941,10.46094021,137.96,137.9,6.5291]
[1764130394230,10.46094021,137.95,137.9,6.5291]
[1764130394433,5.10331742,137.94,137.9,6.5291]
[1764130394635,0.04573453,137.93,137.91,0.04646167]
[1764130394938,0.05155476,137.93,137.91,0.04646167]
[1764130402340,0.05155476,137.93,137.91,6.57536167]
[1764130402552,0.05155476,137.93,137.91,0.04646167]
[1764130410843,6.97691083,137.92,137.86,6.531]
[1764130411044,1.88433725,137.92,137.86,6.531]
[1764130411252,0.05155476,137.93,137.87,8.41513725]
[1764130411453,11.8754446,137.95,137.87,8.41513725]
[1764130411755,11.620873,137.94,137.88,6.5303]
[1764130412055,0.0515479,137.92,137.9,0.05544789]
[1764130417358,0.0515479,137.92,137.9,6.58474789]
[1764130418448,0.0515479,137.92,137.9,0.05544789]
[1764130432756,5.10364823,137.91,137.9,0.05544789]
[1764130432956,0.0515479,137.92,137.9,0.05544789]
[1764130433156,5.10495366,137.91,137.9,0.05544789]
[1764130434358,0.0515479,137.92,137.9,0.05544789]
[1764130435263,0.0515479,137.92,137.9,8.46908514]
[1764130435766,1.88433725,137.99,137.92,6.5282]
[1764130435767,5.05524077,137.96,137.92,6.5282]
[1764130435970,5.05524077,137.95,137.92,6.5282]
[1764130436163,5.33117419,137.97,137.92,24.94]
[1764130436466,5.3294371,137.98,137.92,24.94]
[1764130436665,5.05000223,137.97,137.92,24.94]
[1764130436861,0.04966957,137.96,137.93,0.05022187]
[1764130437369,0.04966957,137.96,137.93,6.57812187]
[1764130438269,0.04966957,137.96,137.93,0.05022187]
[1764130445677,0.04966957,137.96,137.93,6.57812187]
[1764130448471,0.04966957,137.96,137.93,0.05022187]
[1764130450976,0.04966957,137.96,137.93,6.57822187]
[1764130453683,0.04966957,137.96,137.93,0.05022187]
[1764130453884,5.02034075,137.95,137.93,0.05022187]
[1764130454089,0.04966957,137.96,137.93,0.05022187]
[1764130454274,5.02011273,137.95,137.93,0.05022187]
[1764130454477,0.04966957,137.96,137.93,0.05022187]
[1764130454677,5.02039359,137.95,137.93,0.05022187]
[1764130454977,6.57656957,137.96,137.93,0.05022187]
[1764130455181,5.02041204,137.95,137.93,0.05022187]
[1764130455384,6.57656957,137.96,137.93,0.05022187]
[1764130455585,5.02042367,137.95,137.93,0.05022187]
[1764130455787,6.57656957,137.96,137.93,0.05022187]
[1764130456088,5.020424,137.95,137.93,0.05022187]
[1764130456286,5.02082455,137.94,137.93,0.05022187]
[1764130458195,11.54872455,137.94,137.86,24.94]
[1764130458385,6.5279,137.94,137.86,24.94]
[1764130458588,6.5282,137.93,137.88,6.5303]
[1764130458782,106.86263313,137.95,137.84,101.6128]
[1764130458987,0.05158497,137.91,137.88,0.04886091]
[1764130459189,6.58088497,137.91,137.88,0.04886091]
[1764130460596,11.59955111,137.91,137.88,0.04886091]
[1764130460894,6.58088497,137.91,137.88,0.04886091]
[1764130461091,11.59955111,137.91,137.88,0.04886091]
[1764130461289,6.58088497,137.91,137.88,0.04886091]
[1764130462682,11.59737545,137.91,137.88,0.04886091]
[1764130464290,6.58088497,137.91,137.88,0.04886091]
[1764130464497,11.59625584,137.91,137.88,0.04886091]
[1764130465396,5.06695584,137.91,137.88,0.04886091]
[1764130469295,0.05158497,137.91,137.88,0.04886091]
[1764130469598,11.59605584,137.91,137.88,0.04886091]
[1764130470301,6.58068497,137.91,137.88,0.04886091]
[1764130472702,6.5296,137.9,137.88,0.04886091]
[1764130473589,5.06217774,137.91,137.88,0.04886091]
[1764130473590,0.05158497,137.91,137.88,0.04886091]
[1764130474504,0.05158497,137.91,137.88,6.57916091]
[1764130481804,0.05158497,137.91,137.88,0.04886091]
[1764130483111,0.05158497,137.91,137.88,6.57916091]
[1764130493218,0.05158497,137.91,137.89,6.5299]
[1764130495319,5.23974078,137.96,137.91,6.5288]
[1764130495517,8.18493963,137.97,137.91,6.5288]
[1764130495721,2.94519885,137.97,137.91,6.5288]
[1764130496020,5.23974078,137.97,137.91,6.5288]
[1764130496221,5.23974078,137.96,137.91,6.5288]
[1764130496422,0.05052554,137.95,137.92,0.05398216]
[1764130497317,0.05052554,137.95,137.92,6.58248216]
[1764130500819,0.05052554,137.95,137.93,6.528]
[1764130501018,5.23974078,138.01,137.93,104.49019885]
[1764130501216,5.25406233,138.01,138.0,6.5246]
[1764130501416,5.25406233,138.05,137.99,24.92]
[1764130501616,5.25406233,138.06,137.97,101.5185]
[1764130501926,0.05413793,138.03,138.0,0.04660961]
[1764130507923,6.57763793,138.03,138.0,0.04660961]
[1764130509823,0.05413793,138.03,138.0,0.04660961]
[1764130511931,0.05413793,138.03,138.01,6.5241]
[1764130512632,0.05413793,138.03,138.0,0.04660961]
[1764130512832,0.05413793,138.03,138.0,6.57110961]
[1764130513621,0.05413793,138.03,138.01,6.5241]
[1764130514523,0.05413793,138.03,138.0,0.04660961]
[1764130524143,0.05413793,138.03,138.01,6.5241]
[1764130524347,1.8819295,138.1,138.0,103.42263911]
[1764130524644,1.8819295,138.1,138.0,103.3760295]
[1764130525340,0.04770437,138.06,138.04,0.05063631]
[1764130528845,0.04770437,138.06,138.04,6.57343631]
[1764130533352,6.5202,138.1,138.04,6.57343631]
[1764130534349,0.04974001,138.08,138.04,6.57343631]
[1764130535151,0.04974001,138.08,138.05,6.5223]
[1764130535449,0.04974001,138.08,138.04,0.05063631]
[1764130535646,0.04974001,138.08,138.04,6.57343631]
[1764130538954,0.04974001,138.08,138.05,6.5221]
[1764130539160,0.04974001,138.08,138.04,103.39656581]
[1764130539359,0.04974001,138.08,138.04,0.05063631]
[1764130539553,0.04974001,138.08,138.05,6.5222]
[1764130539855,0.04974001,138.08,138.05,31.4022]
[1764130540560,0.04974001,138.08,138.06,6.5218]
[1764130548766,0.04974001,138.08,138.05,24.88]
[1764130549570,0.04974001,138.08,138.04,0.05063631]
[1764130549865,0.04974001,138.08,138.04,24.93063631]
[1764130550463,0.04974001,138.08,138.05,6.5223]
[1764130552156,0.04974001,138.08,138.06,8.4037295]
[1764130552361,4.95196334,138.12,138.06,103.3280295]
[1764130552662,4.95196334,138.13,138.06,103.3280295]
[1764130552862,4.95196334,138.14,138.06,103.3280295]
[1764130553064,4.95196334,138.13,138.06,103.3280295]
[1764130553270,0.04831707,138.11,138.08,0.05300555]
[1764130553565,4.95196334,138.1,138.08,0.05300555]
[1764130554770,8.44994657,138.11,138.08,0.05300555]
[1764130554969,4.93644024,138.1,138.08,0.05300555]
[1764130555170,4.93644024,138.09,138.08,0.05300555]
[1764130555468,4.93644024,138.1,138.08,0.05300555]
[1764130555670,4.93644024,138.09,138.08,0.05300555]
[1764130555971,4.93644024,138.1,138.08,0.05300555]
[1764130556171,4.93644024,138.09,138.08,0.05300555]
[1764130556371,4.93644024,138.1,138.08,0.05300555]
[1764130556669,4.93644024,138.09,138.08,0.05300555]
[1764130556869,15.09644443,138.11,138.08,0.05300555]
[1764130556870,4.93644024,138.1,138.08,0.05300555]
[1764130557063,4.93644024,138.09,138.08,0.05300555]
[1764130557265,4.93644024,138.1,138.08,0.05300555]
[1764130557466,4.93644024,138.09,138.08,0.05300555]
[1764130557669,6.37644024,138.1,138.08,0.05300555]
[1764130557972,4.93644024,138.09,138.08,0.05300555]
[1764130558272,4.93644024,138.1,138.08,0.05300555]
[1764130558574,4.93601585,138.09,138.08,0.05300555]
[1764130558765,4.93601585,138.1,138.08,0.05300555]
[1764130558965,0.04831707,138.11,138.08,0.05300555]
[1764130559166,4.93597537,138.1,138.08,0.05300555]
[1764130559365,0.04831707,138.11,138.08,0.05300555]
[1764130559566,4.9360141,138.1,138.08,0.05300555]
[1764130559766,0.04831707,138.11,138.08,0.05300555]
[1764130559971,4.9360141,138.1,138.08,0.05300555]